[Event "Titled Tuesday Blitz December 13 Early 2022"]
[White "Zhalmakhanov, Ramazan"]
[Black "Babazada, Khazar"]
[WhiteFideId "13706357"]
[BlackFideId "13413554"]
[WhiteElo "2432"]
[BlackElo "2359"]
[Result "1-0"]
[Round "04"]
[TimeControl "180+1"]
[Date "2022.12.13"]
[WhiteClock "0:00:10"]
[BlackClock "0:00:17"]

1. e4 {[%clk 0:03:00]}  c5 {[%clk 0:03:00]} 2. Nc3 {[%clk 0:02:59]}  Nc6 {[%clk 0:02:59]} 3. Bb5 {[%clk 0:02:59]}  e6 {[%clk 0:02:58]} 4. Bxc6 {[%clk 0:02:58]}  bxc6 {[%clk 0:02:57]} 5. d3 {[%clk 0:02:59]}  Ne7 {[%clk 0:02:55]} 6. f4 {[%clk 0:02:58]}  d6 {[%clk 0:02:55]} 7. Nf3 {[%clk 0:02:57]}  f6 {[%clk 0:02:52]} 8. e5 {[%clk 0:02:50]}  Nf5 {[%clk 0:02:47]} 9. O-O {[%clk 0:02:47]}  Be7 {[%clk 0:02:47]} 10. exd6 {[%clk 0:02:41]}  Bxd6 {[%clk 0:02:45]} 11. Ne4 {[%clk 0:02:37]}  Be7 {[%clk 0:02:45]} 12. b3 {[%clk 0:02:35]}  h5 {[%clk 0:02:32]} 13. Qe1 {[%clk 0:02:29]}  O-O {[%clk 0:02:12]} 14. Qf2 {[%clk 0:02:27]}  Qd5 {[%clk 0:01:57]} 15. Ba3 {[%clk 0:02:22]}  Nd6 {[%clk 0:01:54]} 16. Qxc5 {[%clk 0:02:08]}  Nf5 {[%clk 0:01:40]} 17. Qxd5 {[%clk 0:02:02]}  cxd5 {[%clk 0:01:41]} 18. Bxe7 {[%clk 0:02:02]}  Nxe7 {[%clk 0:01:41]} 19. Nc5 {[%clk 0:02:02]}  Kf7 {[%clk 0:01:40]} 20. Rfe1 {[%clk 0:01:58]}  Rb8 {[%clk 0:01:41]} 21. Nd4 {[%clk 0:01:54]}  Rb6 {[%clk 0:01:41]} 22. a4 {[%clk 0:01:53]}  a5 {[%clk 0:01:41]} 23. Re2 {[%clk 0:01:49]}  Rd8 {[%clk 0:01:40]} 24. Rae1 {[%clk 0:01:48]}  Rdd6 {[%clk 0:01:40]} 25. Kf2 {[%clk 0:01:45]}  h4 {[%clk 0:01:37]} 26. g4 {[%clk 0:01:42]}  g5 {[%clk 0:01:37]} 27. fxg5 {[%clk 0:01:32]}  e5 {[%clk 0:01:37]} 28. gxf6 {[%clk 0:01:07]}  Rxf6+ {[%clk 0:01:37]} 29. Kg1 {[%clk 0:01:07]}  Ng6 {[%clk 0:01:37]} 30. g5 {[%clk 0:00:54]}  Rf4 {[%clk 0:01:34]} 31. Nb5 {[%clk 0:00:53]}  Bh3 {[%clk 0:01:30]} 32. Rf2 {[%clk 0:00:48]}  Rc6 {[%clk 0:01:24]} 33. d4 {[%clk 0:00:45]}  Rxf2 {[%clk 0:01:12]} 34. Kxf2 {[%clk 0:00:44]}  exd4 {[%clk 0:01:13]} 35. Nd3 {[%clk 0:00:27]}  Rxc2+ {[%clk 0:01:08]} 36. Re2 {[%clk 0:00:27]}  Rxe2+ {[%clk 0:01:08]} 37. Kxe2 {[%clk 0:00:27]}  Bf5 {[%clk 0:01:08]} 38. Nxd4 {[%clk 0:00:26]}  Be4 {[%clk 0:01:00]} 39. Ke3 {[%clk 0:00:22]}  h3 {[%clk 0:00:56]} 40. Nf2 {[%clk 0:00:21]}  Bg2 {[%clk 0:00:53]} 41. Nc6 {[%clk 0:00:21]}  Ke6 {[%clk 0:00:50]} 42. Nxa5 {[%clk 0:00:20]}  Ne7 {[%clk 0:00:46]} 43. b4 {[%clk 0:00:18]}  Kf5 {[%clk 0:00:42]} 44. Nb3 {[%clk 0:00:17]}  Kxg5 {[%clk 0:00:39]} 45. Nd4 {[%clk 0:00:17]}  Nc8 {[%clk 0:00:33]} 46. a5 {[%clk 0:00:15]}  Bf1 {[%clk 0:00:33]} 47. b5 {[%clk 0:00:15]}  Nd6 {[%clk 0:00:30]} 48. a6 {[%clk 0:00:11]}  Nxb5 {[%clk 0:00:22]} 49. Nxb5 {[%clk 0:00:10]}  Bxb5 {[%clk 0:00:22]} 50. a7 {[%clk 0:00:10]}  Bc6 {[%clk 0:00:18]} 51. Nxh3+ {[%clk 0:00:10]}  Kg4 {[%clk 0:00:16]} 52. Nf2+ {[%clk 0:00:10]}  Kf5 {[%clk 0:00:17]} 53. Kd4 {[%clk 0:00:10]} 1-0


[Site "https://www.chess.com"]

[Event "Titled Tuesday Blitz December 13 Early 2022"]
[White "Agasarov, Benik"]
[Black "Deac, Bogdan-Daniel"]
[WhiteFideId "13314823"]
[BlackFideId "1226380"]
[WhiteElo "2179"]
[BlackElo "2649"]
[Result "0-1"]
[Round "05"]
[TimeControl "180+1"]
[Date "2022.12.13"]
[WhiteClock "0:00:09"]
[BlackClock "0:00:10"]

1. e4 {[%clk 0:02:56]}  g6 {[%clk 0:02:49]} 2. d4 {[%clk 0:02:53]}  Bg7 {[%clk 0:02:46]} 3. Nc3 {[%clk 0:02:52]}  c5 {[%clk 0:02:46]} 4. dxc5 {[%clk 0:02:51]}  Bxc3+ {[%clk 0:02:45]} 5. bxc3 {[%clk 0:02:52]}  Qa5 {[%clk 0:02:45]} 6. Qd4 {[%clk 0:02:52]}  Nf6 {[%clk 0:02:44]} 7. Qb4 {[%clk 0:02:52]}  Qc7 {[%clk 0:02:41]} 8. Bd3 {[%clk 0:02:34]}  Nc6 {[%clk 0:02:32]} 9. Qa4 {[%clk 0:02:33]}  Ne5 {[%clk 0:02:19]} 10. Be3 {[%clk 0:02:27]}  O-O {[%clk 0:01:24]} 11. Ne2 {[%clk 0:02:19]}  Nfg4 {[%clk 0:01:04]} 12. Bd4 {[%clk 0:02:15]}  Nc6 {[%clk 0:01:03]} 13. h3 {[%clk 0:02:12]}  Nf6 {[%clk 0:00:47]} 14. Bxf6 {[%clk 0:02:07]}  exf6 {[%clk 0:00:47]} 15. O-O {[%clk 0:02:07]}  d6 {[%clk 0:00:45]} 16. cxd6 {[%clk 0:02:05]}  Qxd6 {[%clk 0:00:46]} 17. Rad1 {[%clk 0:02:05]}  Qe7 {[%clk 0:00:45]} 18. Nf4 {[%clk 0:02:00]}  Be6 {[%clk 0:00:40]} 19. Bc4 {[%clk 0:02:00]}  Rfd8 {[%clk 0:00:25]} 20. Bd5 {[%clk 0:01:44]}  Bd7 {[%clk 0:00:22]} 21. Qb3 {[%clk 0:01:41]}  Rab8 {[%clk 0:00:20]} 22. Rfe1 {[%clk 0:01:34]}  b6 {[%clk 0:00:17]} 23. Bc4 {[%clk 0:01:29]}  Na5 {[%clk 0:00:16]} 24. Nd5 {[%clk 0:01:29]}  Qc5 {[%clk 0:00:09]} 25. Qb4 {[%clk 0:01:18]}  Qxc4 {[%clk 0:00:04]} 26. Nxf6+ {[%clk 0:01:14]}  Kg7 {[%clk 0:00:04]} 27. Nxd7 {[%clk 0:01:15]}  Rbc8 {[%clk 0:00:05]} 28. Qe7 {[%clk 0:01:14]}  Qe6 {[%clk 0:00:04]} 29. Qxe6 {[%clk 0:01:09]}  fxe6 {[%clk 0:00:05]} 30. Rd3 {[%clk 0:01:06]}  Nc4 {[%clk 0:00:04]} 31. Rb1 {[%clk 0:00:55]}  Kf7 {[%clk 0:00:04]} 32. Rb4 {[%clk 0:00:53]}  Ke7 {[%clk 0:00:04]} 33. Rd4 {[%clk 0:00:44]}  b5 {[%clk 0:00:04]} 34. Rdxc4 {[%clk 0:00:17]}  Rxc4 {[%clk 0:00:03]} 35. Rxc4 {[%clk 0:00:15]}  bxc4 {[%clk 0:00:03]} 36. Ne5 {[%clk 0:00:15]}  Rd1+ {[%clk 0:00:04]} 37. Kh2 {[%clk 0:00:16]}  Rd2 {[%clk 0:00:04]} 38. Nc6+ {[%clk 0:00:09]}  Kd7 {[%clk 0:00:04]} 39. Nxa7 {[%clk 0:00:10]}  Rxf2 {[%clk 0:00:04]} 40. Nb5 {[%clk 0:00:09]}  Rxc2 {[%clk 0:00:05]} 41. a4 {[%clk 0:00:08]}  Ra2 {[%clk 0:00:05]} 42. Kg3 {[%clk 0:00:08]}  e5 {[%clk 0:00:05]} 43. Kg4 {[%clk 0:00:03]}  Rxg2+ {[%clk 0:00:05]} 44. Kh4 {[%clk 0:00:02]}  Ra2 {[%clk 0:00:05]} 45. Kg5 {[%clk 0:00:03]}  Rxa4 {[%clk 0:00:06]} 46. Kf6 {[%clk 0:00:04]}  Ra5 {[%clk 0:00:06]} 47. Kxe5 {[%clk 0:00:01]}  Rxb5+ {[%clk 0:00:07]} 48. Kd4 {[%clk 0:00:02]}  Rh5 {[%clk 0:00:07]} 49. Kxc4 {[%clk 0:00:03]}  Rxh3 {[%clk 0:00:08]} 50. Kd4 {[%clk 0:00:04]}  Rg3 {[%clk 0:00:08]} 51. c4 {[%clk 0:00:05]}  h5 {[%clk 0:00:09]} 52. c5 {[%clk 0:00:06]}  h4 {[%clk 0:00:09]} 53. e5 {[%clk 0:00:07]}  Rg5 {[%clk 0:00:09]} 54. c6+ {[%clk 0:00:08]}  Kxc6 {[%clk 0:00:09]} 55. e6 {[%clk 0:00:08]}  Kd6 {[%clk 0:00:10]} 56. Ke4 {[%clk 0:00:09]}  Rf5 {[%clk 0:00:10]} 57. e7 {[%clk 0:00:09]}  Kxe7 {[%clk 0:00:10]} 0-1


[Site "https://www.chess.com"]

[Event "Titled Tuesday Blitz December 13 Early 2022"]
[White "Alice, Mateus Felizardo Viageiro"]
[Black "Rangel, Daniel"]
[WhiteFideId "14800047"]
[BlackFideId "2124475"]
[WhiteElo "2189"]
[BlackElo "2225"]
[Result "0-1"]
[Round "05"]
[TimeControl "180+1"]
[Date "2022.12.14"]
[WhiteClock "0:00:02"]
[BlackClock "0:01:03"]

1. e4 {[%clk 0:01:18]}  c5 {[%clk 0:02:58]} 2. Nf3 {[%clk 0:01:11]}  g6 {[%clk 0:02:55]} 3. g3 {[%clk 0:01:10]}  Bg7 {[%clk 0:02:55]} 4. d3 {[%clk 0:01:11]}  Nc6 {[%clk 0:02:56]} 5. Bg2 {[%clk 0:01:11]}  d6 {[%clk 0:02:57]} 6. O-O {[%clk 0:01:11]}  e5 {[%clk 0:02:57]} 7. Nbd2 {[%clk 0:01:08]}  Nge7 {[%clk 0:02:56]} 8. Re1 {[%clk 0:01:09]}  O-O {[%clk 0:02:57]} 9. c3 {[%clk 0:01:09]}  d5 {[%clk 0:02:53]} 10. Qc2 {[%clk 0:01:09]}  h6 {[%clk 0:02:49]} 11. exd5 {[%clk 0:01:09]}  Nxd5 {[%clk 0:02:49]} 12. Nb3 {[%clk 0:01:09]}  b6 {[%clk 0:02:48]} 13. a4 {[%clk 0:01:06]}  Bf5 {[%clk 0:02:36]} 14. Nh4 {[%clk 0:01:03]}  Be6 {[%clk 0:02:36]} 15. a5 {[%clk 0:01:02]}  Rb8 {[%clk 0:02:32]} 16. a6 {[%clk 0:00:55]}  Rc8 {[%clk 0:02:23]} 17. Ra3 {[%clk 0:00:51]}  Nde7 {[%clk 0:02:11]} 18. Be3 {[%clk 0:00:41]}  Nb4 {[%clk 0:01:59]} 19. Qb1 {[%clk 0:00:29]}  Nxd3 {[%clk 0:01:51]} 20. Rd1 {[%clk 0:00:29]}  c4 {[%clk 0:01:51]} 21. Nc1 {[%clk 0:00:28]}  g5 {[%clk 0:01:41]} 22. Nxd3 {[%clk 0:00:27]}  cxd3 {[%clk 0:01:38]} 23. Rxd3 {[%clk 0:00:27]}  Qc7 {[%clk 0:01:33]} 24. Ra4 {[%clk 0:00:14]}  gxh4 {[%clk 0:01:30]} 25. Rxh4 {[%clk 0:00:15]}  Bf5 {[%clk 0:01:30]} 26. Be4 {[%clk 0:00:14]}  Bxe4 {[%clk 0:01:29]} 27. Rxe4 {[%clk 0:00:15]}  f5 {[%clk 0:01:26]} 28. Rh4 {[%clk 0:00:15]}  Ng6 {[%clk 0:01:25]} 29. Rh5 {[%clk 0:00:15]}  f4 {[%clk 0:01:13]} 30. Bc1 {[%clk 0:00:10]}  Qf7 {[%clk 0:01:11]} 31. Rf3 {[%clk 0:00:05]}  e4 {[%clk 0:01:06]} 32. Qxe4 {[%clk 0:00:04]}  Rce8 {[%clk 0:01:06]} 33. Qc2 {[%clk 0:00:02]}  Ne5 {[%clk 0:01:03]} 0-1


[Site "https://www.chess.com"]

[Event "Titled Tuesday Blitz December 13 Early 2022"]
[White "Ambartsumova, Karina"]
[Black "Jaskolka, Tomasz"]
[WhiteFideId "4166299"]
[BlackFideId "1170791"]
[WhiteElo "2319"]
[BlackElo "2126"]
[Result "0-1"]
[Round "05"]
[TimeControl "180+1"]
[Date "2022.12.14"]
[WhiteClock "0:00:05"]
[BlackClock "0:01:36"]

1. Nf3 {[%clk 0:02:53]}  Nf6 {[%clk 0:02:59]} 2. d4 {[%clk 0:02:53]}  d5 {[%clk 0:02:59]} 3. c4 {[%clk 0:02:52]}  c6 {[%clk 0:03:00]} 4. g3 {[%clk 0:02:52]}  Bg4 {[%clk 0:02:59]} 5. Ne5 {[%clk 0:02:51]}  Bf5 {[%clk 0:02:59]} 6. Qb3 {[%clk 0:02:51]}  Qb6 {[%clk 0:02:58]} 7. c5 {[%clk 0:02:50]}  Qc7 {[%clk 0:02:56]} 8. Bf4 {[%clk 0:02:40]}  Qc8 {[%clk 0:02:57]} 9. Nc3 {[%clk 0:02:37]}  e6 {[%clk 0:02:57]} 10. Bg2 {[%clk 0:02:35]}  Nbd7 {[%clk 0:02:57]} 11. O-O {[%clk 0:02:33]}  Be7 {[%clk 0:02:57]} 12. f3 {[%clk 0:02:15]}  Nxe5 {[%clk 0:02:50]} 13. Bxe5 {[%clk 0:02:11]}  O-O {[%clk 0:02:51]} 14. e4 {[%clk 0:02:09]}  Bg6 {[%clk 0:02:51]} 15. Rae1 {[%clk 0:01:56]}  Rd8 {[%clk 0:02:47]} 16. Bxf6 {[%clk 0:01:50]}  Bxf6 {[%clk 0:02:47]} 17. e5 {[%clk 0:01:50]}  Be7 {[%clk 0:02:47]} 18. f4 {[%clk 0:01:51]}  Bd3 {[%clk 0:02:42]} 19. Rf2 {[%clk 0:01:49]}  Ba6 {[%clk 0:02:41]} 20. Qc2 {[%clk 0:01:44]}  g6 {[%clk 0:02:41]} 21. h4 {[%clk 0:01:17]}  b6 {[%clk 0:02:38]} 22. cxb6 {[%clk 0:01:15]}  axb6 {[%clk 0:02:38]} 23. h5 {[%clk 0:01:01]}  c5 {[%clk 0:02:37]} 24. Na4 {[%clk 0:00:50]}  Qc6 {[%clk 0:02:25]} 25. b3 {[%clk 0:00:49]}  Bb5 {[%clk 0:02:22]} 26. Nc3 {[%clk 0:00:46]}  cxd4 {[%clk 0:02:22]} 27. Nxb5 {[%clk 0:00:46]}  Qxb5 {[%clk 0:02:23]} 28. hxg6 {[%clk 0:00:46]}  hxg6 {[%clk 0:02:23]} 29. Bf3 {[%clk 0:00:45]}  d3 {[%clk 0:02:21]} 30. Qd2 {[%clk 0:00:35]}  Bb4 {[%clk 0:02:17]} 31. Qd1 {[%clk 0:00:34]}  Bc5 {[%clk 0:02:13]} 32. Qd2 {[%clk 0:00:31]}  Rdc8 {[%clk 0:02:10]} 33. Bd1 {[%clk 0:00:22]}  Bb4 {[%clk 0:02:03]} 34. Qe3 {[%clk 0:00:20]}  Rxa2 {[%clk 0:01:51]} 35. Ref1 {[%clk 0:00:08]}  Rxf2 {[%clk 0:01:49]} 36. Rxf2 {[%clk 0:00:07]}  Bc5 {[%clk 0:01:49]} 37. Qf3 {[%clk 0:00:06]}  Bxf2+ {[%clk 0:01:49]} 38. Qxf2 {[%clk 0:00:05]}  Qc5 {[%clk 0:01:49]} 39. Bf3 {[%clk 0:00:04]}  Qxf2+ {[%clk 0:01:48]} 40. Kxf2 {[%clk 0:00:05]}  Rc3 {[%clk 0:01:36]} 0-1


[Site "https://www.chess.com"]

[Event "Titled Tuesday Blitz December 13 Early 2022"]
[White "Andreikin, Dmitry"]
[Black "Vokhidov, Shamsiddin"]
[WhiteFideId "4158814"]
[BlackFideId "14204223"]
[WhiteElo "2735"]
[BlackElo "2597"]
[Result "1-0"]
[Round "05"]
[TimeControl "180+1"]
[Date "2022.12.13"]
[WhiteClock "0:00:06"]
[BlackClock "0:00:06"]

1. d4 {[%clk 0:03:00]}  Nf6 {[%clk 0:02:59]} 2. c4 {[%clk 0:02:58]}  e6 {[%clk 0:03:00]} 3. Nf3 {[%clk 0:02:56]}  d5 {[%clk 0:02:59]} 4. g3 {[%clk 0:02:56]}  dxc4 {[%clk 0:02:59]} 5. Bg2 {[%clk 0:02:55]}  Nc6 {[%clk 0:03:00]} 6. O-O {[%clk 0:02:55]}  Rb8 {[%clk 0:02:59]} 7. Bg5 {[%clk 0:02:55]}  Be7 {[%clk 0:02:55]} 8. e3 {[%clk 0:02:55]}  b5 {[%clk 0:02:53]} 9. b3 {[%clk 0:02:51]}  O-O {[%clk 0:02:48]} 10. bxc4 {[%clk 0:02:19]}  bxc4 {[%clk 0:02:49]} 11. Nfd2 {[%clk 0:02:19]}  Na5 {[%clk 0:02:47]} 12. Qa4 {[%clk 0:02:18]}  c5 {[%clk 0:02:46]} 13. dxc5 {[%clk 0:02:00]}  Ba6 {[%clk 0:02:33]} 14. Nc3 {[%clk 0:01:41]}  Bb7 {[%clk 0:02:26]} 15. Rfd1 {[%clk 0:01:34]}  Bxg2 {[%clk 0:02:22]} 16. Kxg2 {[%clk 0:01:33]}  Qc7 {[%clk 0:02:16]} 17. Bf4 {[%clk 0:01:04]}  e5 {[%clk 0:02:13]} 18. Bxe5 {[%clk 0:01:02]}  Qxe5 {[%clk 0:02:09]} 19. Qxa5 {[%clk 0:01:03]}  Bd8 {[%clk 0:02:09]} 20. Qa3 {[%clk 0:00:58]}  Qe6 {[%clk 0:02:02]} 21. Qxa7 {[%clk 0:00:52]}  Be7 {[%clk 0:02:00]} 22. Qa4 {[%clk 0:00:46]}  Nd5 {[%clk 0:01:44]} 23. Nxd5 {[%clk 0:00:32]}  Qxd5+ {[%clk 0:01:45]} 24. Kg1 {[%clk 0:00:29]}  c3 {[%clk 0:01:31]} 25. Nb3 {[%clk 0:00:29]}  Qf5 {[%clk 0:01:19]} 26. Rac1 {[%clk 0:00:26]}  Bf6 {[%clk 0:01:18]} 27. Qc4 {[%clk 0:00:22]}  Rfc8 {[%clk 0:01:13]} 28. Qd5 {[%clk 0:00:18]}  Qg4 {[%clk 0:01:05]} 29. c6 {[%clk 0:00:15]}  Ra8 {[%clk 0:00:57]} 30. Qd7 {[%clk 0:00:12]}  Qc4 {[%clk 0:00:49]} 31. Nd4 {[%clk 0:00:08]}  g6 {[%clk 0:00:47]} 32. Qd6 {[%clk 0:00:07]}  Kg7 {[%clk 0:00:46]} 33. Qf4 {[%clk 0:00:07]}  Ra4 {[%clk 0:00:38]} 34. Rc2 {[%clk 0:00:06]}  Rd8 {[%clk 0:00:24]} 35. Rdc1 {[%clk 0:00:05]}  Bxd4 {[%clk 0:00:23]} 36. exd4 {[%clk 0:00:05]}  Qxc6 {[%clk 0:00:18]} 37. Rxc3 {[%clk 0:00:04]}  Qd5 {[%clk 0:00:18]} 38. Qe5+ {[%clk 0:00:02]}  Qxe5 {[%clk 0:00:18]} 39. dxe5 {[%clk 0:00:03]}  Rxa2 {[%clk 0:00:18]} 40. Rf3 {[%clk 0:00:04]}  Re2 {[%clk 0:00:17]} 41. Rc7 {[%clk 0:00:04]}  Rf8 {[%clk 0:00:17]} 42. Re7 {[%clk 0:00:04]}  h6 {[%clk 0:00:15]} 43. Kg2 {[%clk 0:00:04]}  Re1 {[%clk 0:00:15]} 44. Rf4 {[%clk 0:00:05]}  Re2 {[%clk 0:00:15]} 45. h4 {[%clk 0:00:05]}  h5 {[%clk 0:00:14]} 46. Kf3 {[%clk 0:00:05]}  Re1 {[%clk 0:00:14]} 47. Kg2 {[%clk 0:00:05]}  Re2 {[%clk 0:00:14]} 48. Kf1 {[%clk 0:00:05]}  Rb2 {[%clk 0:00:13]} 49. e6 {[%clk 0:00:06]}  Rb6 {[%clk 0:00:08]} 50. Rexf7+ {[%clk 0:00:06]}  Rxf7 {[%clk 0:00:07]} 51. Rxf7+ {[%clk 0:00:07]}  Kg8 {[%clk 0:00:06]} 52. Rf6 {[%clk 0:00:07]}  Kg7 {[%clk 0:00:06]} 53. e7 {[%clk 0:00:04]}  Rb1+ {[%clk 0:00:04]} 54. Ke2 {[%clk 0:00:05]}  Rb8 {[%clk 0:00:03]} 55. Re6 {[%clk 0:00:04]}  Re8 {[%clk 0:00:03]} 56. Ke3 {[%clk 0:00:04]}  Kf7 {[%clk 0:00:02]} 57. Re5 {[%clk 0:00:05]}  Kf6 {[%clk 0:00:02]} 58. Kf4 {[%clk 0:00:04]}  Kf7 {[%clk 0:00:01]} 59. Kg5 {[%clk 0:00:04]}  Kg7 {[%clk 0:00:01]} 60. Re6 {[%clk 0:00:05]}  Kf7 {[%clk 0:00:02]} 61. Rxg6 {[%clk 0:00:05]}  Kxe7 {[%clk 0:00:03]} 62. Kxh5 {[%clk 0:00:04]}  Rf8 {[%clk 0:00:04]} 63. f4 {[%clk 0:00:04]}  Rh8+ {[%clk 0:00:04]} 64. Kg5 {[%clk 0:00:04]}  Rb8 {[%clk 0:00:05]} 65. f5 {[%clk 0:00:04]}  Kf7 {[%clk 0:00:05]} 66. g4 {[%clk 0:00:05]}  Rb3 {[%clk 0:00:06]} 67. h5 {[%clk 0:00:05]}  Rb4 {[%clk 0:00:06]} 68. h6 {[%clk 0:00:05]}  Rb2 {[%clk 0:00:07]} 69. Rg7+ {[%clk 0:00:06]}  Kf8 {[%clk 0:00:06]} 70. Ra7 {[%clk 0:00:06]}  Rh2 {[%clk 0:00:07]} 71. Kg6 {[%clk 0:00:06]}  Ke8 {[%clk 0:00:07]} 72. h7 {[%clk 0:00:04]}  Kd8 {[%clk 0:00:07]} 73. Ra8+ {[%clk 0:00:05]}  Ke7 {[%clk 0:00:06]} 74. h8=Q {[%clk 0:00:06]} 1-0


[Site "https://www.chess.com"]

[Event "Titled Tuesday Blitz December 13 Early 2022"]
[White "Ansh M Shah"]
[Black "Turzo, Attila"]
[WhiteFideId "25033379"]
[BlackFideId "704954"]
[WhiteElo "2084"]
[BlackElo "2571"]
[Result "0-1"]
[Round "05"]
[TimeControl "180+1"]
[Date "2022.12.14"]
[WhiteClock "0:00:01"]
[BlackClock "0:00:19"]

1. d4 {[%clk 0:03:00]}  Nf6 {[%clk 0:02:28]} 2. c4 {[%clk 0:03:00]}  g6 {[%clk 0:02:28]} 3. h4 {[%clk 0:03:01]}  h5 {[%clk 0:02:26]} 4. Nc3 {[%clk 0:03:01]}  c6 {[%clk 0:02:26]} 5. e4 {[%clk 0:03:01]}  d5 {[%clk 0:02:25]} 6. cxd5 {[%clk 0:03:01]}  cxd5 {[%clk 0:02:25]} 7. e5 {[%clk 0:03:02]}  Ng4 {[%clk 0:02:22]} 8. f3 {[%clk 0:02:57]}  Nh6 {[%clk 0:02:22]} 9. Bd3 {[%clk 0:02:55]}  Nc6 {[%clk 0:02:15]} 10. Nge2 {[%clk 0:02:55]}  Nf5 {[%clk 0:02:07]} 11. Bxf5 {[%clk 0:02:55]}  Bxf5 {[%clk 0:02:05]} 12. Qb3 {[%clk 0:02:56]}  Bg7 {[%clk 0:01:53]} 13. Qxb7 {[%clk 0:01:49]}  Rc8 {[%clk 0:01:52]} 14. O-O {[%clk 0:01:33]}  O-O {[%clk 0:01:52]} 15. Bg5 {[%clk 0:01:30]}  Na5 {[%clk 0:01:34]} 16. Qxe7 {[%clk 0:00:53]}  Qb6 {[%clk 0:01:16]} 17. Nxd5 {[%clk 0:00:53]}  Qxb2 {[%clk 0:01:16]} 18. Nef4 {[%clk 0:00:25]}  Qxd4+ {[%clk 0:01:14]} 19. Kh1 {[%clk 0:00:24]}  Rc2 {[%clk 0:01:10]} 20. Nf6+ {[%clk 0:00:19]}  Kh8 {[%clk 0:01:09]} 21. e6 {[%clk 0:00:16]}  fxe6 {[%clk 0:01:00]} 22. Nd7 {[%clk 0:00:07]}  Rc7 {[%clk 0:00:55]} 23. Nxe6 {[%clk 0:00:06]}  Qxd7 {[%clk 0:00:52]} 24. Nxg7 {[%clk 0:00:04]}  Qxe7 {[%clk 0:00:51]} 25. Bxe7 {[%clk 0:00:05]}  Rxe7 {[%clk 0:00:48]} 26. Nxf5 {[%clk 0:00:06]}  Rxf5 {[%clk 0:00:49]} 27. Rac1 {[%clk 0:00:06]}  Kg7 {[%clk 0:00:47]} 28. Rc8 {[%clk 0:00:05]}  Nb7 {[%clk 0:00:45]} 29. Rb1 {[%clk 0:00:04]}  Nd6 {[%clk 0:00:44]} 30. Rc6 {[%clk 0:00:04]}  Nf7 {[%clk 0:00:42]} 31. Kh2 {[%clk 0:00:03]}  Ra5 {[%clk 0:00:41]} 32. Rb2 {[%clk 0:00:04]}  Ne5 {[%clk 0:00:38]} 33. Rc3 {[%clk 0:00:01]}  Ra4 {[%clk 0:00:37]} 34. Rcb3 {[%clk 0:00:02]}  Rxh4+ {[%clk 0:00:35]} 35. Kg3 {[%clk 0:00:02]}  g5 {[%clk 0:00:33]} 36. Rc2 {[%clk 0:00:02]}  Ng6 {[%clk 0:00:33]} 37. Rc6 {[%clk 0:00:03]}  Ra4 {[%clk 0:00:31]} 38. a3 {[%clk 0:00:03]}  h4+ {[%clk 0:00:30]} 39. Kh2 {[%clk 0:00:03]}  Rf4 {[%clk 0:00:25]} 40. Rb5 {[%clk 0:00:02]}  Ne5 {[%clk 0:00:23]} 41. Rcc5 {[%clk 0:00:02]}  Rf5 {[%clk 0:00:21]} 42. Ra5 {[%clk 0:00:02]}  Kf6 {[%clk 0:00:20]} 43. Ra6+ {[%clk 0:00:01]}  Re6 {[%clk 0:00:19]} 0-1


[Site "https://www.chess.com"]

[Event "Titled Tuesday Blitz December 13 Early 2022"]
[White "Aradhya, Garg"]
[Black "Kozlov, Gennady"]
[WhiteFideId "25006746"]
[BlackFideId "4191668"]
[WhiteElo "2278"]
[BlackElo "2356"]
[Result "1/2-1/2"]
[Round "05"]
[TimeControl "180+1"]
[Date "2022.12.14"]
[WhiteClock "0:00:20"]
[BlackClock "0:00:39"]

1. d4 {[%clk 0:02:56]}  e6 {[%clk 0:02:49]} 2. e4 {[%clk 0:02:55]}  d5 {[%clk 0:02:49]} 3. e5 {[%clk 0:02:55]}  c5 {[%clk 0:02:48]} 4. c3 {[%clk 0:02:56]}  Nc6 {[%clk 0:02:49]} 5. Nf3 {[%clk 0:02:56]}  Bd7 {[%clk 0:02:50]} 6. Be2 {[%clk 0:02:52]}  Qb6 {[%clk 0:02:47]} 7. dxc5 {[%clk 0:02:52]}  Bxc5 {[%clk 0:02:46]} 8. O-O {[%clk 0:02:53]}  f6 {[%clk 0:02:43]} 9. b4 {[%clk 0:02:51]}  Be7 {[%clk 0:02:43]} 10. Bf4 {[%clk 0:02:50]}  fxe5 {[%clk 0:02:42]} 11. Nxe5 {[%clk 0:02:50]}  Nxe5 {[%clk 0:02:42]} 12. Bxe5 {[%clk 0:02:51]}  Nf6 {[%clk 0:02:43]} 13. a4 {[%clk 0:02:44]}  Bd6 {[%clk 0:02:41]} 14. Bh5+ {[%clk 0:01:58]}  Nxh5 {[%clk 0:02:40]} 15. Qxh5+ {[%clk 0:01:59]}  g6 {[%clk 0:02:41]} 16. Qe2 {[%clk 0:01:58]}  Bxe5 {[%clk 0:02:40]} 17. Qxe5 {[%clk 0:01:58]}  O-O-O {[%clk 0:02:40]} 18. Nd2 {[%clk 0:01:49]}  Qc7 {[%clk 0:02:39]} 19. Nf3 {[%clk 0:01:49]}  Rhf8 {[%clk 0:02:39]} 20. Rfe1 {[%clk 0:01:46]}  Rf5 {[%clk 0:02:38]} 21. Qd4 {[%clk 0:01:46]}  Rxf3 {[%clk 0:02:33]} 22. gxf3 {[%clk 0:01:46]}  Kb8 {[%clk 0:02:31]} 23. Qe5 {[%clk 0:01:45]}  Rf8 {[%clk 0:02:25]} 24. Kg2 {[%clk 0:01:43]}  Qxe5 {[%clk 0:02:24]} 25. Rxe5 {[%clk 0:01:43]}  Kc7 {[%clk 0:02:24]} 26. c4 {[%clk 0:01:24]}  Kd6 {[%clk 0:02:21]} 27. Re2 {[%clk 0:01:21]}  dxc4 {[%clk 0:02:20]} 28. Rc2 {[%clk 0:01:16]}  Bc6 {[%clk 0:02:17]} 29. Rxc4 {[%clk 0:01:15]}  Bxf3+ {[%clk 0:02:16]} 30. Kg3 {[%clk 0:01:15]}  Bd5 {[%clk 0:02:17]} 31. Rf4 {[%clk 0:01:14]}  Rc8 {[%clk 0:02:17]} 32. Re1 {[%clk 0:01:13]}  Rc3+ {[%clk 0:02:13]} 33. Re3 {[%clk 0:01:12]}  Rc2 {[%clk 0:02:12]} 34. Rf7 {[%clk 0:01:00]}  h5 {[%clk 0:02:11]} 35. Rf6 {[%clk 0:00:59]}  Rc4 {[%clk 0:02:11]} 36. Rxg6 {[%clk 0:00:58]}  Rxb4 {[%clk 0:02:09]} 37. a5 {[%clk 0:00:51]}  h4+ {[%clk 0:01:55]} 38. Kh3 {[%clk 0:00:51]}  Be4 {[%clk 0:01:54]} 39. Rxe6+ {[%clk 0:00:36]}  Kxe6 {[%clk 0:01:53]} 40. f3 {[%clk 0:00:36]}  Kf5 {[%clk 0:01:15]} 41. fxe4+ {[%clk 0:00:36]}  Rxe4 {[%clk 0:01:16]} 42. Rb3 {[%clk 0:00:35]}  Re5 {[%clk 0:01:11]} 43. Rxb7 {[%clk 0:00:34]}  Rxa5 {[%clk 0:01:11]} 44. Kxh4 {[%clk 0:00:34]}  Ra2 {[%clk 0:01:10]} 45. h3 {[%clk 0:00:32]}  a5 {[%clk 0:01:10]} 46. Kh5 {[%clk 0:00:32]}  a4 {[%clk 0:01:09]} 47. h4 {[%clk 0:00:32]}  a3 {[%clk 0:01:09]} 48. Ra7 {[%clk 0:00:32]}  Kf6 {[%clk 0:01:06]} 49. Kh6 {[%clk 0:00:25]}  Rh2 {[%clk 0:01:03]} 50. Ra6+ {[%clk 0:00:25]}  Kf5 {[%clk 0:00:57]} 51. Ra5+ {[%clk 0:00:25]}  Kg4 {[%clk 0:00:54]} 52. Ra4+ {[%clk 0:00:25]}  Kf5 {[%clk 0:00:54]} 53. Ra5+ {[%clk 0:00:24]}  Ke4 {[%clk 0:00:54]} 54. Ra4+ {[%clk 0:00:23]}  Kd5 {[%clk 0:00:54]} 55. h5 {[%clk 0:00:20]}  a2 {[%clk 0:00:49]} 56. Kg6 {[%clk 0:00:20]}  Kc5 {[%clk 0:00:49]} 57. h6 {[%clk 0:00:20]}  Kb5 {[%clk 0:00:49]} 58. Ra8 {[%clk 0:00:19]}  Kb4 {[%clk 0:00:49]} 59. h7 {[%clk 0:00:19]}  Kb3 {[%clk 0:00:49]} 60. Rb8+ {[%clk 0:00:19]}  Kc3 {[%clk 0:00:48]} 61. Ra8 {[%clk 0:00:19]}  Kb2 {[%clk 0:00:47]} 62. Rb8+ {[%clk 0:00:19]}  Kc1 {[%clk 0:00:45]} 63. Rc8+ {[%clk 0:00:19]}  Kb1 {[%clk 0:00:44]} 64. Rb8+ {[%clk 0:00:20]}  Kc1 {[%clk 0:00:44]} 65. Rc8+ {[%clk 0:00:20]}  Kb2 {[%clk 0:00:44]} 66. Rb8+ {[%clk 0:00:20]}  Kc3 {[%clk 0:00:42]} 67. Ra8 {[%clk 0:00:20]}  Kb3 {[%clk 0:00:40]} 68. Rb8+ {[%clk 0:00:20]}  Ka3 {[%clk 0:00:39]} 69. Ra8+ {[%clk 0:00:20]}  Kb3 {[%clk 0:00:39]} 1/2-1/2


[Site "https://www.chess.com"]